[Event "Late-Titled-Tuesday-Blitz-April-23-2024"]
[Site "Chess.com"]
[Date "2024.04.23"]
[Round "3"]
[White "platy3"]
[Black "amanmuhammethommadov"]
[Result "1/2-1/2"]
[WhiteElo "2887"]
[BlackElo "2709"]
[TimeControl "180+1"]
[EndTime "14:31:04 PDT"]
[Termination "Game drawn - insufficient material"]

1. e4 {[%clk 0:02:58]} 1... c5 {[%clk 0:03:00.1]} 2. Nf3 {[%clk 0:02:54.3]} 2...
Nc6 {[%clk 0:03:00.5]} 3. Bb5 {[%clk 0:02:53.3]} 3... e6 {[%clk 0:03:00.8]} 4.
O-O {[%clk 0:02:52.9]} 4... Nge7 {[%clk 0:03:00.9]} 5. Re1 {[%clk 0:02:53]} 5...
a6 {[%clk 0:03:01.4]} 6. Bf1 {[%clk 0:02:52.8]} 6... d5 {[%clk 0:03:01.5]} 7.
exd5 {[%clk 0:02:51.1]} 7... Nxd5 {[%clk 0:03:02.4]} 8. d4 {[%clk 0:02:51.7]}
8... Nf6 {[%clk 0:03:02.9]} 9. Be3 {[%clk 0:02:52.2]} 9... Be7 {[%clk
0:03:02.5]} 10. c4 {[%clk 0:02:50.5]} 10... Ng4 {[%clk 0:03:02.6]} 11. d5 {[%clk
0:02:33.1]} 11... Nxe3 {[%clk 0:03:02.6]} 12. Rxe3 {[%clk 0:02:33.2]} 12... Bf6
{[%clk 0:02:58.9]} 13. Nc3 {[%clk 0:02:28.2]} 13... Nd4 {[%clk 0:02:58.1]} 14.
Nd2 {[%clk 0:02:16.6]} 14... O-O {[%clk 0:02:53.9]} 15. Nde4 {[%clk 0:02:16.7]}
15... Be5 {[%clk 0:02:48.3]} 16. Nxc5 {[%clk 0:02:09.2]} 16... Bxh2+ {[%clk
0:02:23.3]} 17. Kxh2 {[%clk 0:02:08.1]} 17... Qc7+ {[%clk 0:02:23.7]} 18. Rg3
{[%clk 0:01:55.3]} 18... Qxc5 {[%clk 0:02:23.5]} 19. Ne4 {[%clk 0:01:55]} 19...
Qa7 {[%clk 0:02:16.9]} 20. Nf6+ {[%clk 0:00:45.1]} 20... Kh8 {[%clk 0:02:16.7]}
21. Rh3 {[%clk 0:00:43.3]} 21... gxf6 {[%clk 0:01:57.2]} 22. Qh5 {[%clk
0:00:41.9]} 22... Nf3+ {[%clk 0:01:57.6]} 23. Qxf3 {[%clk 0:00:26.3]} 23... Qd4
{[%clk 0:01:56.2]} 24. Qh5 {[%clk 0:00:22.8]} 24... Qe5+ {[%clk 0:01:54.2]} 25.
Qxe5 {[%clk 0:00:20.9]} 25... fxe5 {[%clk 0:01:55.1]} 26. d6 {[%clk 0:00:15.5]}
26... b6 {[%clk 0:01:51.4]} 27. b4 {[%clk 0:00:15]} 27... a5 {[%clk 0:01:51.4]}
28. c5 {[%clk 0:00:14.9]} 28... Rd8 {[%clk 0:01:40.2]} 29. Rd1 {[%clk
0:00:09.9]} 29... Bb7 {[%clk 0:01:38.9]} 30. Bb5 {[%clk 0:00:08.7]} 30... Rac8
{[%clk 0:01:33.5]} 31. d7 {[%clk 0:00:08.7]} 31... Rc7 {[%clk 0:01:22.4]} 32. c6
{[%clk 0:00:09.3]} 32... Bxc6 {[%clk 0:01:22.1]} 33. Rc3 {[%clk 0:00:09.4]}
33... Rcxd7 {[%clk 0:01:08.5]} 34. Rxd7 {[%clk 0:00:09.1]} 34... Rxd7 {[%clk
0:01:09.4]} 35. Bxc6 {[%clk 0:00:06.3]} 35... Rd2 {[%clk 0:01:08.4]} 36. bxa5
{[%clk 0:00:06.3]} 36... bxa5 {[%clk 0:01:06.2]} 37. Ra3 {[%clk 0:00:06.6]}
37... Rxf2 {[%clk 0:01:05.7]} 38. Rxa5 {[%clk 0:00:07]} 38... f5 {[%clk
0:00:55.3]} 39. a4 {[%clk 0:00:03.3]} 39... Rc2 {[%clk 0:00:36.6]} 40. Bf3
{[%clk 0:00:03.1]} 40... e4 {[%clk 0:00:36.5]} 41. Bd1 {[%clk 0:00:03.2]} 41...
Rd2 {[%clk 0:00:36.8]} 42. Bb3 {[%clk 0:00:03.6]} 42... Kg7 {[%clk 0:00:34.9]}
43. Re5 {[%clk 0:00:03.6]} 43... Rb2 {[%clk 0:00:32]} 44. Bc4 {[%clk 0:00:04]}
44... Rb4 {[%clk 0:00:32.1]} 45. Ba2 {[%clk 0:00:03.1]} 45... Rxa4 {[%clk
0:00:31.9]} 46. Bb3 {[%clk 0:00:03.1]} 46... Rb4 {[%clk 0:00:32.2]} 47. Ba2
{[%clk 0:00:03.6]} 47... Rb2 {[%clk 0:00:32.3]} 48. Bc4 {[%clk 0:00:03.6]} 48...
Rc2 {[%clk 0:00:32.8]} 49. Bb3 {[%clk 0:00:02.9]} 49... Rc3 {[%clk 0:00:32.7]}
50. Rb5 {[%clk 0:00:03.5]} 50... e3 {[%clk 0:00:32.3]} 51. Kg3 {[%clk
0:00:03.2]} 51... Kf6 {[%clk 0:00:30.8]} 52. Kf3 {[%clk 0:00:03.6]} 52... e5
{[%clk 0:00:30.6]} 53. Rb6+ {[%clk 0:00:03.8]} 53... Kg5 {[%clk 0:00:30.4]} 54.
Ke2 {[%clk 0:00:04.7]} 54... e4 {[%clk 0:00:29.3]} 55. Rb5 {[%clk 0:00:04.8]}
55... Kf4 {[%clk 0:00:29.3]} 56. Be6 {[%clk 0:00:04.5]} 56... Rc2+ {[%clk
0:00:29.7]} 57. Ke1 {[%clk 0:00:04.5]} 57... Rc1+ {[%clk 0:00:28.2]} 58. Ke2
{[%clk 0:00:05.1]} 58... Rc2+ {[%clk 0:00:28.2]} 59. Kd1 {[%clk 0:00:05.7]}
59... Rd2+ {[%clk 0:00:28.2]} 60. Ke1 {[%clk 0:00:06.2]} 60... Rxg2 {[%clk
0:00:21.9]} 61. Rxf5+ {[%clk 0:00:06.5]} 61... Kg3 {[%clk 0:00:21.9]} 62. Rf7
{[%clk 0:00:06.9]} 62... h5 {[%clk 0:00:21.7]} 63. Bd5 {[%clk 0:00:07.4]} 63...
Rg1+ {[%clk 0:00:20.6]} 64. Ke2 {[%clk 0:00:07.6]} 64... Ra1 {[%clk 0:00:20.9]}
65. Bxe4 {[%clk 0:00:07.5]} 65... h4 {[%clk 0:00:21]} 66. Kxe3 {[%clk 0:00:07]}
66... Re1+ {[%clk 0:00:21]} 67. Kd4 {[%clk 0:00:06.5]} 67... h3 {[%clk
0:00:21.5]} 68. Rg7+ {[%clk 0:00:06.8]} 68... Kf2 {[%clk 0:00:21.8]} 69. Rh7
{[%clk 0:00:06.7]} 69... Rxe4+ {[%clk 0:00:22]} 70. Kxe4 {[%clk 0:00:06.9]}
70... Kg2 {[%clk 0:00:22.9]} 71. Rg7+ {[%clk 0:00:07.4]} 71... Kf2 {[%clk
0:00:23.4]} 72. Rh7 {[%clk 0:00:07.3]} 72... Kg2 {[%clk 0:00:23.7]} 73. Ke3
{[%clk 0:00:07.3]} 73... h2 {[%clk 0:00:23.9]} 74. Rg7+ {[%clk 0:00:07.3]} 74...
Kf1 {[%clk 0:00:24.4]} 75. Rh7 {[%clk 0:00:04.9]} 75... Kg2 {[%clk 0:00:24.7]}
76. Rxh2+ {[%clk 0:00:03.6]} 76... Kxh2 {[%clk 0:00:24.6]} 1/2-1/2

[Event "Late-Titled-Tuesday-Blitz-April-23-2024"]
[Site "Chess.com"]
[Date "2024.04.23"]
[Round "3"]
[White "Byniolus"]
[Black "SpeedofLight0"]
[Result "0-1"]
[WhiteElo "2800"]
[BlackElo "3072"]
[TimeControl "180+1"]
[EndTime "14:31:14 PDT"]
[Termination "SpeedofLight0 won on time"]

1. d4 {[%clk 0:03:00.9]} 1... d6 {[%clk 0:02:59.8]} 2. Nf3 {[%clk 0:03:01.1]}
2... g6 {[%clk 0:02:59.6]} 3. Bf4 {[%clk 0:03:01]} 3... Bg7 {[%clk 0:02:58.2]}
4. e3 {[%clk 0:03:01.1]} 4... Nc6 {[%clk 0:02:58.2]} 5. h3 {[%clk 0:02:59.3]}
5... e5 {[%clk 0:02:58]} 6. dxe5 {[%clk 0:02:59.8]} 6... dxe5 {[%clk 0:02:58.1]}
7. Qxd8+ {[%clk 0:03:00.1]} 7... Kxd8 {[%clk 0:02:59]} 8. Bg5+ {[%clk
0:03:00.3]} 8... f6 {[%clk 0:02:59.1]} 9. Bh4 {[%clk 0:03:00.1]} 9... Nh6 {[%clk
0:02:47.8]} 10. Nc3 {[%clk 0:02:51.5]} 10... Nf5 {[%clk 0:02:42.3]} 11. O-O-O+
{[%clk 0:02:52.4]} 11... Bd7 {[%clk 0:02:42.6]} 12. Ne4 {[%clk 0:02:44.7]} 12...
Nxh4 {[%clk 0:02:38.4]} 13. Nc5 {[%clk 0:02:44.8]} 13... Nb8 {[%clk 0:02:11.7]}
14. Nxh4 {[%clk 0:02:36.5]} 14... Ke7 {[%clk 0:02:10.2]} 15. Nxb7 {[%clk
0:02:28.4]} 15... Bc6 {[%clk 0:01:57.2]} 16. Na5 {[%clk 0:02:22.6]} 16... Be8
{[%clk 0:01:51.9]} 17. Nf3 {[%clk 0:02:13.4]} 17... Nc6 {[%clk 0:01:48.6]} 18.
Nxc6+ {[%clk 0:02:06.7]} 18... Bxc6 {[%clk 0:01:49.5]} 19. Bc4 {[%clk
0:02:06.3]} 19... Rhd8 {[%clk 0:01:39.6]} 20. Rhg1 {[%clk 0:01:40.2]} 20... a5
{[%clk 0:01:34.6]} 21. Be2 {[%clk 0:01:28.2]} 21... f5 {[%clk 0:01:23.2]} 22. c3
{[%clk 0:01:21.3]} 22... a4 {[%clk 0:01:18.9]} 23. a3 {[%clk 0:01:19.4]} 23...
Be8 {[%clk 0:01:18.5]} 24. Rxd8 {[%clk 0:01:14.7]} 24... Rxd8 {[%clk 0:01:18.4]}
25. Rd1 {[%clk 0:01:15.6]} 25... Rb8 {[%clk 0:01:18.8]} 26. Ne1 {[%clk
0:01:07.8]} 26... Bf7 {[%clk 0:01:13.2]} 27. Nd3 {[%clk 0:01:01.7]} 27... Bb3
{[%clk 0:01:00.5]} 28. Rd2 {[%clk 0:01:01.5]} 28... Rb5 {[%clk 0:00:59.9]} 29.
Bd1 {[%clk 0:00:52.8]} 29... Bxd1 {[%clk 0:00:43.9]} 30. Rxd1 {[%clk 0:00:53.7]}
30... e4 {[%clk 0:00:44]} 31. Nb4 {[%clk 0:00:48]} 31... Ke6 {[%clk 0:00:42.5]}
32. Rd8 {[%clk 0:00:41.8]} 32... Ra5 {[%clk 0:00:39.9]} 33. Nc6 {[%clk
0:00:29.9]} 33... Ra6 {[%clk 0:00:37.7]} 34. Nd4+ {[%clk 0:00:29.3]} 34... Ke7
{[%clk 0:00:34.6]} 35. Rb8 {[%clk 0:00:26.3]} 35... Be5 {[%clk 0:00:32.1]} 36.
Rb5 {[%clk 0:00:17.4]} 36... Bd6 {[%clk 0:00:30.9]} 37. Kc2 {[%clk 0:00:09.6]}
37... Kd7 {[%clk 0:00:30.4]} 38. Ne2 {[%clk 0:00:01.9]} 38... c6 {[%clk
0:00:22.1]} 39. Rb7+ {[%clk 0:00:02.1]} 39... Bc7 {[%clk 0:00:22.7]} 40. Nf4
{[%clk 0:00:02]} 40... g5 {[%clk 0:00:15.7]} 41. Nh5 {[%clk 0:00:02]} 41... c5
{[%clk 0:00:16.3]} 42. Ng7 {[%clk 0:00:01.4]} 42... Kc6 {[%clk 0:00:11.6]} 43.
Rxc7+ {[%clk 0:00:01.8]} 43... Kxc7 {[%clk 0:00:12.5]} 44. Nxf5 {[%clk
0:00:02.4]} 44... Rf6 {[%clk 0:00:12.8]} 45. g4 {[%clk 0:00:02.7]} 45... h5
{[%clk 0:00:07.9]} 46. b3 {[%clk 0:00:03]} 46... axb3+ {[%clk 0:00:04.9]} 47.
Kxb3 {[%clk 0:00:03.7]} 47... h4 {[%clk 0:00:05.8]} 48. Kc4 {[%clk 0:00:03.7]}
48... Rb6 {[%clk 0:00:05.5]} 49. Kxc5 {[%clk 0:00:02.8]} 49... Rb1 {[%clk
0:00:06.2]} 50. Kd4 {[%clk 0:00:03.4]} 50... Rh1 {[%clk 0:00:06.4]} 51. Kxe4
{[%clk 0:00:04.3]} 51... Rxh3 {[%clk 0:00:07.1]} 52. Nd4 {[%clk 0:00:03.8]}
52... Rh1 {[%clk 0:00:06.8]} 53. Kf3 {[%clk 0:00:04.1]} 53... Kd6 {[%clk
0:00:03]} 54. c4 {[%clk 0:00:03.7]} 54... Rg1 {[%clk 0:00:03.1]} 55. c5+ {[%clk
0:00:03.4]} 55... Kd5 {[%clk 0:00:02.9]} 56. c6 {[%clk 0:00:03.5]} 56... Kd6
{[%clk 0:00:02.3]} 57. c7 {[%clk 0:00:04]} 57... Kxc7 {[%clk 0:00:02.3]} 58.
Ne6+ {[%clk 0:00:04.3]} 58... Kd6 {[%clk 0:00:02.7]} 59. Nxg5 {[%clk 0:00:05]}
59... Ke5 {[%clk 0:00:02.5]} 60. Nh3 {[%clk 0:00:04.1]} 60... Rh1 {[%clk
0:00:02.4]} 61. Kg2 {[%clk 0:00:04.1]} 61... Ra1 {[%clk 0:00:03.3]} 62. Ng5
{[%clk 0:00:02.6]} 62... Rxa3 {[%clk 0:00:01.3]} 63. Nf3+ {[%clk 0:00:02.8]}
63... Kf6 {[%clk 0:00:02]} 64. Nxh4 {[%clk 0:00:03.7]} 64... Kg5 {[%clk
0:00:02.9]} 65. Kg3 {[%clk 0:00:03.9]} 65... Ra1 {[%clk 0:00:02.7]} 66. Nf3+
{[%clk 0:00:04.8]} 66... Kf6 {[%clk 0:00:02.9]} 67. Kf4 {[%clk 0:00:05.3]} 67...
Ra2 {[%clk 0:00:03.1]} 68. Kg3 {[%clk 0:00:05.8]} 68... Ra4 {[%clk 0:00:03.2]}
69. Nd4 {[%clk 0:00:05.9]} 69... Ke5 {[%clk 0:00:03.5]} 70. g5 {[%clk
0:00:05.2]} 70... Ra1 {[%clk 0:00:02.8]} 71. f4+ {[%clk 0:00:04.8]} 71... Ke4
{[%clk 0:00:03.1]} 72. Kg4 {[%clk 0:00:04.6]} 72... Rg1+ {[%clk 0:00:02.6]} 73.
Kh5 {[%clk 0:00:04.8]} 73... Kxe3 {[%clk 0:00:03.3]} 74. Ne6 {[%clk 0:00:02.5]}
74... Ke4 {[%clk 0:00:03.6]} 75. g6 {[%clk 0:00:02.1]} 75... Kf5 {[%clk
0:00:04]} 76. Nd4+ {[%clk 0:00:01.4]} 76... Kf6 {[%clk 0:00:03.8]} 77. f5 {[%clk
0:00:01.6]} 77... Rd1 {[%clk 0:00:03.9]} 0-1

[Event "Late-Titled-Tuesday-Blitz-April-23-2024"]
[Site "Chess.com"]
[Date "2024.04.23"]
[Round "3"]
[White "subham777"]
[Black "ChessGiantYouTube"]
[Result "1-0"]
[WhiteElo "2525"]
[BlackElo "2342"]
[TimeControl "180+1"]
[EndTime "14:31:18 PDT"]
[Termination "subham777 won by checkmate"]

1. e4 {[%clk 0:03:00.9]} 1... g6 {[%clk 0:02:59.2]} 2. g3 {[%clk 0:02:58.8]}
2... b6 {[%clk 0:02:57.9]} 3. Bg2 {[%clk 0:02:58.6]} 3... Bb7 {[%clk 0:02:58.6]}
4. Ne2 {[%clk 0:02:58.9]} 4... Bg7 {[%clk 0:02:59]} 5. O-O {[%clk 0:02:59.4]}
5... d6 {[%clk 0:02:58.4]} 6. d4 {[%clk 0:02:58.9]} 6... e6 {[%clk 0:02:58.6]}
7. c4 {[%clk 0:02:59]} 7... Nd7 {[%clk 0:02:57.8]} 8. Nbc3 {[%clk 0:02:59.4]}
8... Ne7 {[%clk 0:02:58.1]} 9. h4 {[%clk 0:02:58.9]} 9... h6 {[%clk 0:02:55.6]}
10. Be3 {[%clk 0:02:58.3]} 10... O-O {[%clk 0:02:33.4]} 11. Qd2 {[%clk
0:02:52.3]} 11... Kh7 {[%clk 0:02:33.3]} 12. Rad1 {[%clk 0:02:51.2]} 12... Rb8
{[%clk 0:02:04.7]} 13. f4 {[%clk 0:02:44.4]} 13... f5 {[%clk 0:02:02.8]} 14. e5
{[%clk 0:02:41.8]} 14... Qe8 {[%clk 0:01:52.4]} 15. Bxb7 {[%clk 0:02:33.9]}
15... Rxb7 {[%clk 0:01:53.3]} 16. exd6 {[%clk 0:02:32.1]} 16... cxd6 {[%clk
0:01:52.6]} 17. Nb5 {[%clk 0:02:32.6]} 17... Nc8 {[%clk 0:01:50.2]} 18. Rfe1
{[%clk 0:02:19]} 18... Nf6 {[%clk 0:01:48.9]} 19. Nec3 {[%clk 0:02:14.2]} 19...
a6 {[%clk 0:01:43]} 20. Na3 {[%clk 0:02:13.5]} 20... Ng4 {[%clk 0:01:39.7]} 21.
Qg2 {[%clk 0:02:08.6]} 21... Ra7 {[%clk 0:01:10.4]} 22. Nc2 {[%clk 0:02:02.5]}
22... Ne7 {[%clk 0:00:55.9]} 23. Bc1 {[%clk 0:01:53.9]} 23... Ng8 {[%clk
0:00:49.4]} 24. Nb4 {[%clk 0:01:36.4]} 24... N8f6 {[%clk 0:00:33.5]} 25. Nc6
{[%clk 0:01:32.8]} 25... Rc7 {[%clk 0:00:33.4]} 26. d5 {[%clk 0:01:33.2]} 26...
e5 {[%clk 0:00:33]} 27. fxe5 {[%clk 0:01:26.5]} 27... dxe5 {[%clk 0:00:33.9]}
28. Be3 {[%clk 0:01:08.1]} 28... Nxe3 {[%clk 0:00:26.8]} 29. Rxe3 {[%clk
0:01:08]} 29... Ng4 {[%clk 0:00:27.3]} 30. Re2 {[%clk 0:01:03.9]} 30... e4
{[%clk 0:00:26.9]} 31. Na4 {[%clk 0:00:56.8]} 31... Rxc6 {[%clk 0:00:25.5]} 32.
dxc6 {[%clk 0:00:54.8]} 32... Qxc6 {[%clk 0:00:26.4]} 33. b3 {[%clk 0:00:48.3]}
33... b5 {[%clk 0:00:26.5]} 34. Nb2 {[%clk 0:00:48.1]} 34... Bxb2 {[%clk
0:00:25]} 35. Rxb2 {[%clk 0:00:47.3]} 35... Ne3 {[%clk 0:00:25.6]} 36. Qd2
{[%clk 0:00:38.3]} 36... Nxd1 {[%clk 0:00:25]} 37. Qxd1 {[%clk 0:00:34.1]} 37...
Qb6+ {[%clk 0:00:23.2]} 38. Kh2 {[%clk 0:00:31]} 38... Rd8 {[%clk 0:00:23.3]}
39. Rd2 {[%clk 0:00:15.7]} 39... Qf2+ {[%clk 0:00:21]} 40. Rxf2 {[%clk
0:00:14.8]} 40... Rxd1 {[%clk 0:00:21.9]} 41. Rc2 {[%clk 0:00:12.4]} 41... e3
{[%clk 0:00:19.2]} 42. Kh3 {[%clk 0:00:09]} 42... Rd2 {[%clk 0:00:17.7]} 43. Rc1
{[%clk 0:00:07]} 43... e2 {[%clk 0:00:16.4]} 44. Re1 {[%clk 0:00:07]} 44... bxc4
{[%clk 0:00:16.1]} 45. bxc4 {[%clk 0:00:07]} 45... Rxa2 {[%clk 0:00:16.8]} 46.
c5 {[%clk 0:00:07]} 46... Rc2 {[%clk 0:00:17.5]} 47. c6 {[%clk 0:00:07.4]} 47...
Rxc6 {[%clk 0:00:16.3]} 48. Rxe2 {[%clk 0:00:07.4]} 48... Kg7 {[%clk 0:00:16.8]}
49. Re7+ {[%clk 0:00:07.3]} 49... Kf6 {[%clk 0:00:17.4]} 50. Ra7 {[%clk
0:00:07.3]} 50... g5 {[%clk 0:00:17.6]} 51. h5 {[%clk 0:00:07.2]} 51... Ke5
{[%clk 0:00:17.1]} 52. Rg7 {[%clk 0:00:05.7]} 52... Ke4 {[%clk 0:00:17.1]} 53.
Rg6 {[%clk 0:00:05.7]} 53... Kd5 {[%clk 0:00:15.4]} 54. Rg8 {[%clk 0:00:03.8]}
54... a5 {[%clk 0:00:15.1]} 55. Ra8 {[%clk 0:00:03.2]} 55... Rc5 {[%clk
0:00:15.2]} 56. Ra6 {[%clk 0:00:03.6]} 56... Ke4 {[%clk 0:00:15.2]} 57. Rxh6
{[%clk 0:00:03.3]} 57... f4 {[%clk 0:00:14.7]} 58. Ra6 {[%clk 0:00:02]} 58...
Kf3 {[%clk 0:00:14.5]} 59. gxf4 {[%clk 0:00:01.9]} 59... gxf4 {[%clk 0:00:14.6]}
60. Kh4 {[%clk 0:00:02.8]} 60... Kg2 {[%clk 0:00:14]} 61. h6 {[%clk 0:00:03.2]}
61... f3 {[%clk 0:00:13.2]} 62. Rg6+ {[%clk 0:00:03.7]} 62... Kh2 {[%clk
0:00:12]} 63. h7 {[%clk 0:00:04.5]} 63... Rc8 {[%clk 0:00:04.5]} 64. Rg8 {[%clk
0:00:04]} 64... Rc4+ {[%clk 0:00:01.7]} 65. Kg5 {[%clk 0:00:03.2]} 65... f2
{[%clk 0:00:01.7]} 66. h8=Q+ {[%clk 0:00:03.4]} 66... Kg1 {[%clk 0:00:02.4]} 67.
Kf6+ {[%clk 0:00:03.8]} 67... Kf1 {[%clk 0:00:02]} 68. Qh1+ {[%clk 0:00:04.4]}
68... Ke2 {[%clk 0:00:01.8]} 69. Re8+ {[%clk 0:00:03.9]} 69... Kd3 {[%clk
0:00:01.6]} 70. Qd5+ {[%clk 0:00:04.2]} 70... Rd4 {[%clk 0:00:02.5]} 71. Qb3+
{[%clk 0:00:04.1]} 71... Kd2 {[%clk 0:00:01.5]} 72. Qb2+ {[%clk 0:00:04.7]}
72... Kd3 {[%clk 0:00:01.9]} 73. Qxf2 {[%clk 0:00:04.9]} 73... Kc4 {[%clk
0:00:02.1]} 74. Rc8+ {[%clk 0:00:04.5]} 74... Kd5 {[%clk 0:00:02.1]} 75. Rd8+
{[%clk 0:00:04.8]} 75... Kc6 {[%clk 0:00:02.1]} 76. Qxd4 {[%clk 0:00:05.5]}
76... a4 {[%clk 0:00:03]} 77. Qd5+ {[%clk 0:00:05.9]} 77... Kc7 {[%clk
0:00:02.9]} 78. Rd7+ {[%clk 0:00:06.3]} 78... Kb6 {[%clk 0:00:03]} 79. Rd6+
{[%clk 0:00:06]} 79... Ka7 {[%clk 0:00:03.3]} 80. Qf7+ {[%clk 0:00:06]} 80...
Kb8 {[%clk 0:00:04.2]} 81. Rd8# {[%clk 0:00:06.3]} 1-0

[Event "Late-Titled-Tuesday-Blitz-April-23-2024"]
[Site "Chess.com"]
[Date "2024.04.23"]
[Round "3"]
[White "MetiForce"]
[Black "enriquetejedor"]
[Result "1/2-1/2"]
[WhiteElo "2927"]
[BlackElo "2734"]
[TimeControl "180+1"]
[EndTime "14:31:21 PDT"]
[Termination "Game drawn by repetition"]

1. c4 {[%clk 0:03:00.9]} 1... e5 {[%clk 0:02:56.4]} 2. Nc3 {[%clk 0:02:57.8]}
2... g6 {[%clk 0:02:53.8]} 3. Nf3 {[%clk 0:02:54.7]} 3... d6 {[%clk 0:02:52.9]}
4. d4 {[%clk 0:02:51.6]} 4... Bg7 {[%clk 0:02:52]} 5. h4 {[%clk 0:02:41.7]} 5...
Nc6 {[%clk 0:02:50.5]} 6. dxe5 {[%clk 0:02:40]} 6... Nxe5 {[%clk 0:02:49.1]} 7.
h5 {[%clk 0:02:34.7]} 7... Bg4 {[%clk 0:02:39.3]} 8. h6 {[%clk 0:02:33.3]} 8...
Bf6 {[%clk 0:02:37.8]} 9. Nd5 {[%clk 0:02:32.6]} 9... Bxf3 {[%clk 0:02:34.6]}
10. gxf3 {[%clk 0:02:32.1]} 10... c6 {[%clk 0:02:23.8]} 11. Nxf6+ {[%clk
0:02:30.7]} 11... Nxf6 {[%clk 0:02:21.8]} 12. Qb3 {[%clk 0:02:17.3]} 12... Qb6
{[%clk 0:02:12.6]} 13. f4 {[%clk 0:01:59.4]} 13... Ned7 {[%clk 0:02:08.9]} 14.
Be3 {[%clk 0:01:57.5]} 14... Qa5+ {[%clk 0:02:06.9]} 15. Bd2 {[%clk 0:01:54.7]}
15... Qb6 {[%clk 0:02:06.4]} 16. Bh3 {[%clk 0:01:36.2]} 16... Nc5 {[%clk
0:02:05]} 17. Qe3+ {[%clk 0:01:33.9]} 17... Kf8 {[%clk 0:02:04.2]} 18. Bc3
{[%clk 0:01:33.4]} 18... Re8 {[%clk 0:02:00.2]} 19. Qd4 {[%clk 0:01:33.4]} 19...
Nce4 {[%clk 0:01:59.6]} 20. f3 {[%clk 0:01:19.9]} 20... Nxc3 {[%clk 0:01:55.6]}
21. Qxc3 {[%clk 0:01:10]} 21... Qe3 {[%clk 0:01:54.9]} 22. Qxe3 {[%clk
0:01:07.5]} 22... Rxe3 {[%clk 0:01:55.8]} 23. Kf2 {[%clk 0:01:07.8]} 23... Re8
{[%clk 0:01:45.5]} 24. Rad1 {[%clk 0:01:00.6]} 24... Ke7 {[%clk 0:01:42.8]} 25.
e4 {[%clk 0:00:46.7]} 25... Rd8 {[%clk 0:01:39.7]} 26. Rd3 {[%clk 0:00:42.8]}
26... Nd7 {[%clk 0:01:18.6]} 27. Rhd1 {[%clk 0:00:22.8]} 27... Nc5 {[%clk
0:01:18]} 28. Ra3 {[%clk 0:00:22.9]} 28... a6 {[%clk 0:01:15.7]} 29. b4 {[%clk
0:00:23.6]} 29... Ne6 {[%clk 0:01:15.6]} 30. Ke3 {[%clk 0:00:24.3]} 30... Rhe8
{[%clk 0:01:11.6]} 31. Rad3 {[%clk 0:00:21.8]} 31... Nc7 {[%clk 0:01:10.4]} 32.
a4 {[%clk 0:00:18]} 32... f6 {[%clk 0:01:08.9]} 33. Kf2 {[%clk 0:00:18.2]} 33...
Na8 {[%clk 0:01:03.3]} 34. c5 {[%clk 0:00:17.4]} 34... dxc5 {[%clk 0:00:27.1]}
35. Rd7+ {[%clk 0:00:17.1]} 35... Rxd7 {[%clk 0:00:27.7]} 36. Rxd7+ {[%clk
0:00:18]} 36... Kf8 {[%clk 0:00:28.1]} 37. bxc5 {[%clk 0:00:18.9]} 37... Re7
{[%clk 0:00:27.6]} 38. Rxe7 {[%clk 0:00:13.3]} 38... Kxe7 {[%clk 0:00:28.5]} 39.
Bc8 {[%clk 0:00:13.8]} 39... Nc7 {[%clk 0:00:18]} 40. Bxb7 {[%clk 0:00:07.9]}
40... Kd7 {[%clk 0:00:13.3]} 41. Ke3 {[%clk 0:00:08.2]} 41... Ne6 {[%clk
0:00:11.5]} 42. Bxa6 {[%clk 0:00:07.7]} 42... Nxc5 {[%clk 0:00:08.4]} 43. Bc4
{[%clk 0:00:08.3]} 43... Nxa4 {[%clk 0:00:05.5]} 44. Bg8 {[%clk 0:00:09.1]}
44... Ke7 {[%clk 0:00:05.9]} 45. Bxh7 {[%clk 0:00:09.5]} 45... Kf7 {[%clk
0:00:06.5]} 46. e5 {[%clk 0:00:08.4]} 46... Nc5 {[%clk 0:00:04.3]} 47. Kd4
{[%clk 0:00:02.2]} 47... Ne6+ {[%clk 0:00:04.1]} 48. Ke4 {[%clk 0:00:02.9]}
48... f5+ {[%clk 0:00:02.9]} 49. Ke3 {[%clk 0:00:03.1]} 49... Nf8 {[%clk
0:00:03.7]} 50. Bxg6+ {[%clk 0:00:02.9]} 50... Kxg6 {[%clk 0:00:03.2]} 51. Kd4
{[%clk 0:00:03]} 51... Ne6+ {[%clk 0:00:03.7]} 52. Kc4 {[%clk 0:00:03.6]} 52...
Nxf4 {[%clk 0:00:03.7]} 53. Kc5 {[%clk 0:00:04.5]} 53... Nd3+ {[%clk 0:00:02.5]}
54. Kd6 {[%clk 0:00:04]} 54... Nf4 {[%clk 0:00:01.9]} 55. Kxc6 {[%clk 0:00:04]}
55... Kxh6 {[%clk 0:00:02]} 56. Kd6 {[%clk 0:00:04.7]} 56... Kg5 {[%clk
0:00:02.2]} 57. e6 {[%clk 0:00:05.2]} 57... Ng6 {[%clk 0:00:02.6]} 58. e7 {[%clk
0:00:04.1]} 58... Nxe7 {[%clk 0:00:03]} 59. Kxe7 {[%clk 0:00:05]} 59... f4
{[%clk 0:00:03.2]} 60. Ke6 {[%clk 0:00:05.5]} 60... Kg6 {[%clk 0:00:02.2]} 61.
Ke5 {[%clk 0:00:04.6]} 61... Kg5 {[%clk 0:00:02.5]} 62. Ke4 {[%clk 0:00:05.3]}
62... Kg6 {[%clk 0:00:02.8]} 63. Ke5 {[%clk 0:00:05.7]} 63... Kg5 {[%clk
0:00:02.7]} 64. Kd5 {[%clk 0:00:06]} 64... Kf5 {[%clk 0:00:02.5]} 65. Kd4 {[%clk
0:00:06.3]} 65... Kf6 {[%clk 0:00:02.4]} 66. Kd5 {[%clk 0:00:06.2]} 66... Kf5
{[%clk 0:00:02.1]} 67. Kd4 {[%clk 0:00:07]} 67... Kf6 {[%clk 0:00:02]} 68. Ke4
{[%clk 0:00:07.9]} 68... Kg5 {[%clk 0:00:01.7]} 69. Ke5 {[%clk 0:00:08.2]} 69...
Kg6 {[%clk 0:00:02]} 70. Ke6 {[%clk 0:00:08.8]} 70... Kg5 {[%clk 0:00:02.1]} 71.
Ke5 {[%clk 0:00:06.4]} 71... Kg6 {[%clk 0:00:02.3]} 72. Kd6 {[%clk 0:00:07.1]}
72... Kf5 {[%clk 0:00:02.4]} 73. Kd5 {[%clk 0:00:06.3]} 73... Kg6 {[%clk
0:00:02.7]} 74. Ke5 {[%clk 0:00:06.7]} 1/2-1/2